fUSD/lending_fUSD_20240803
["ID","MTS","AMOUNT","RATE_DAILY","PERIOD"]
[334013123,1722679847184,-500.0,0.0001726,2]
[334013124,1722679847193,-500.0,0.0001726,2]
[334013125,1722679847202,-500.0,0.0001726,2]
[334013126,1722679847212,-500.0,0.0001726,2]
[334013127,1722679847222,-500.0,0.0001726,2]
[334013128,1722679847232,-500.0,0.0001726,2]
[334013129,1722679847241,-500.0,0.0001726,2]
[334013130,1722679847251,-500.0,0.0001726,2]
[334013131,1722679847261,-724.65,0.0001726,2]
[334013132,1722679847271,-500.0,0.0001726,2]
[334013133,1722679847283,-500.0,0.0001726,2]
[334013134,1722679847292,-500.0,0.0001726,2]
[334013135,1722679847302,-500.0,0.0001726,2]
[334013136,1722679847311,-500.0,0.0001726,2]
[334013137,1722679847321,-500.0,0.0001726,2]
[334013138,1722679847330,-500.0,0.0001726,2]
[334013139,1722679847341,-500.0,0.0001726,2]
[334013140,1722679847350,-500.0,0.0001726,2]
[334013141,1722679847360,-205.07915574,0.0001726,2]
[334013142,1722679847371,-500.0,0.0001726,2]
[334013143,1722679847381,-285.09769615,0.0001726,2]
[334013144,1722679847390,-500.0,0.0001726,2]
[334013145,1722679847399,-500.0,0.0001726,2]
[334013146,1722679847409,-500.0,0.0001726,2]
[334013147,1722679847418,-500.0,0.0001726,2]
[334013148,1722679847428,-500.0,0.0001726,2]
[334013149,1722679847437,-500.0,0.0001726,2]
[334013150,1722679847447,-500.0,0.0001726,2]
[334013151,1722679847457,-504.3151093,0.0001726,2]
[334013152,1722679847466,-500.0,0.0001726,2]
[334013153,1722679847476,-500.0,0.0001726,2]
[334013154,1722679847485,-169.62,0.0001726,2]
[334013155,1722679847495,-500.0,0.0001726,2]
[334013156,1722679847504,-500.0,0.0001726,2]
[334013157,1722679847514,-500.0,0.0001726,2]
[334013158,1722679847524,-500.0,0.0001726,2]
[334013159,1722679847536,-618.48971132,0.0001726,2]
[334013160,1722679847545,-500.0,0.0001726,2]
[334013161,1722679847554,-500.0,0.0001726,2]
[334013162,1722679847564,-500.0,0.0001726,2]
[334013163,1722679847573,-500.0,0.0001726,2]
[334013164,1722679847583,-500.0,0.0001726,2]
[334013165,1722679847592,-500.0,0.0001726,2]
[334013166,1722679847602,-500.0,0.0001726,2]
[334013167,1722679847611,-500.0,0.0001726,2]
[334013168,1722679847621,-500.0,0.0001726,2]
[334013169,1722679847630,-1050.57,0.0001726,2]
[334013170,1722679847641,-511.8555491,0.0001726,2]
[334013171,1722679847650,-863.18,0.0001726,2]
[334013172,1722679847660,-500.0,0.0001726,2]
[334013173,1722679847670,-500.0,0.0001726,2]
[334013174,1722679847679,-500.0,0.0001726,2]
[334013175,1722679847688,-500.0,0.0001726,2]
[334013176,1722679847697,-500.0,0.0001726,2]
[334013177,1722679847707,-500.0,0.0001726,2]
[334013178,1722679847716,-500.0,0.0001726,2]
[334013179,1722679847726,-500.0,0.0001726,2]
[334013180,1722679847735,-500.0,0.0001726,2]
[334013181,1722679847745,-500.0,0.0001726,2]
[334013182,1722679847755,-500.0,0.0001726,2]
[334013183,1722679847764,-500.0,0.0001726,2]
[334013184,1722679847774,-539.35,0.0001726,2]
[334013185,1722679847785,-500.0,0.0001726,2]
[334013186,1722679847794,-500.0,0.0001726,2]
[334013187,1722679847803,-500.0,0.0001726,2]
[334013188,1722679847813,-487.92079781,0.0001726,2]
[334013189,1722679847827,-500.0,0.0001726,2]
[334013190,1722679847836,-500.0,0.0001726,2]
[334013191,1722679847846,-500.0,0.0001726,2]
[334013192,1722679847856,-500.0,0.0001726,2]
[334013193,1722679847866,-500.0,0.0001726,2]
[334013194,1722679847875,-500.0,0.0001726,2]
[334013195,1722679847885,-500.0,0.0001726,2]
[334013196,1722679847895,-500.0,0.0001726,2]
[334013197,1722679847906,-500.0,0.0001726,2]
[334013198,1722679847916,-700.34,0.0001726,2]
[334013199,1722679847925,-500.0,0.0001726,2]
[334013200,1722679847934,-500.0,0.0001726,2]
[334013201,1722679847944,-500.0,0.0001726,2]
[334013202,1722679847953,-500.0,0.0001726,2]
[334013203,1722679847962,-592.7,0.0001726,2]
[334013204,1722679847971,-500.0,0.0001726,2]
[334013205,1722679847982,-500.0,0.0001726,2]
[334013206,1722679847992,-500.0,0.0001726,2]
[334013207,1722679848002,-500.0,0.0001726,2]
[334013208,1722679848012,-542.41,0.0001726,2]
[334013209,1722679848021,-500.0,0.0001726,2]
[334013210,1722679848033,-551.5,0.0001726,2]
[334013211,1722679848042,-500.0,0.0001726,2]
[334013212,1722679848052,-500.0,0.0001726,2]
[334013213,1722679848061,-500.0,0.0001726,2]
[334013214,1722679848071,-2156.49,0.0001726,2]
[334013215,1722679848080,-763.4,0.0001726,2]
[334013216,1722679848091,-500.0,0.0001726,2]
[334013217,1722679848100,-605.34,0.0001726,2]
[334013218,1722679848110,-500.0,0.0001726,2]
[334013219,1722679848119,-2025.66,0.0001726,2]
[334013220,1722679848129,-533.71,0.0001726,2]
[334013221,1722679848138,-500.0,0.0001726,2]
[334013222,1722679848147,-151.0,0.0001726,2]
[334013223,1722679848156,-500.0,0.0001726,2]
[334013224,1722679848165,-500.0,0.0001726,2]
[334013225,1722679848175,-985.87,0.0001726,2]
[334013226,1722679848184,-1174.52,0.0001726,2]
[334013227,1722679848194,-500.0,0.0001726,2]
[334013228,1722679848203,-500.0,0.0001726,2]
[334013229,1722679848213,-500.0,0.0001726,2]
[334013230,1722679848223,-1586.69,0.0001726,2]
[334013231,1722679848232,-830.37,0.0001726,2]
[334013232,1722679848241,-500.0,0.0001726,2]
[334013233,1722679848251,-500.0,0.0001726,2]
[334013234,1722679848260,-500.0,0.0001726,2]
[334013235,1722679848270,-500.0,0.0001726,2]
[334013236,1722679848279,-500.0,0.0001726,2]
[334013237,1722679848289,-500.0,0.0001726,2]
[334013238,1722679848299,-6184.42,0.0001726,2]
[334013239,1722679848309,-715.08,0.0001726,2]
[334013240,1722679848318,-2939.45,0.0001726,2]
[334013241,1722679848327,-500.0,0.0001726,2]
[334013242,1722679848337,-2824.94,0.0001726,2]
[334013243,1722679848346,-728.72,0.0001726,2]
[334013244,1722679848356,-500.0,0.0001726,2]
[334013245,1722679848365,-1733.44,0.0001726,2]
[334013246,1722679848374,-500.0,0.0001726,2]
[334013247,1722679848384,-612.74,0.0001726,2]
[334013248,1722679848394,-478.18231084,0.0001726,2]
[334013249,1722679848403,-500.0,0.0001726,2]
[334013250,1722679848413,-1033.05,0.0001726,2]
[334013251,1722679848422,-2726.97,0.0001726,2]
[334013252,1722679848432,-500.0,0.0001726,2]
[334013253,1722679848441,-500.0,0.0001726,2]
[334013254,1722679848452,-674.25,0.0001726,2]
[334013255,1722679848462,-591.7,0.0001726,2]
[334013256,1722679848471,-500.0,0.0001726,2]
[334013257,1722679848480,-500.0,0.0001726,2]
[334013258,1722679848490,-500.0,0.0001726,2]
[334013259,1722679848500,-797.47,0.0001726,2]
[334013260,1722679848510,-2712.22,0.0001726,2]
[334013261,1722679848519,-771.83,0.0001726,2]
[334013262,1722679848530,-500.0,0.0001726,2]
[334013263,1722679848540,-779.95,0.0001726,2]
[334013264,1722679848549,-1649.43,0.0001726,2]
[334013265,1722679848559,-500.0,0.0001726,2]
[334013266,1722679848569,-827.87,0.0001726,2]
[334013267,1722679848579,-500.0,0.0001726,2]
[334013268,1722679848589,-500.0,0.0001726,2]
[334013269,1722679848598,-694.73,0.0001726,2]
[334013270,1722679848608,-500.0,0.0001726,2]
[334013271,1722679848619,-1327.35,0.0001726,2]
[334013272,1722679848628,-406.85355194,0.0001726,2]
[334013273,1722679848638,-1575.91,0.0001726,2]
[334013274,1722679848648,-500.0,0.0001726,2]
[334013275,1722679848658,-550.59,0.0001726,2]
[334013276,1722679848667,-1401.71,0.0001726,2]
[334013277,1722679848677,-500.0,0.0001726,2]
[334013278,1722679848687,-500.0,0.0001726,2]
[334013279,1722679848697,-813.6,0.0001726,2]
[334013280,1722679848707,-695.59,0.0001726,2]
[334013281,1722679848717,-500.0,0.0001726,2]
[334013282,1722679848726,-500.0,0.0001726,2]
[334013283,1722679848735,-575.62357282,0.0001726,2]
[334013284,1722679848745,-1465.19,0.0001726,2]
[334013285,1722679848754,-500.0,0.0001726,2]
[334013286,1722679848763,-500.0,0.0001726,2]
[334013287,1722679848773,-946.14,0.0001726,2]
[334013288,1722679848849,-500.0,0.0001726,2]
[334013289,1722679848860,-500.0,0.0001726,2]
[334013290,1722679848869,-500.0,0.0001726,2]
[334013291,1722679848878,-161.24631619,0.0001726,2]
[334013292,1722679848896,-338.75368381,0.0001726,2]
[334013293,1722679848907,-500.0,0.0001726,2]
[334013294,1722679848916,-600.86,0.0001726,2]
[334013295,1722679848925,-500.0,0.0001726,2]
[334013296,1722679848935,-500.0,0.0001726,2]
[334013297,1722679848944,-512.10610769,0.0001726,2]
[334013298,1722679848955,-66.16389231,0.0001726,2]
[334013299,1722679848965,-500.0,0.0001726,2]
[334013300,1722679848974,-500.0,0.0001726,2]
[334013301,1722679848985,-500.0,0.0001726,2]
[334013302,1722679848994,-839.29,0.0001726,2]
[334013303,1722679849003,-979.53,0.0001726,2]
[334013304,1722679849012,-1182.76,0.0001726,2]
[334013305,1722679849022,-500.0,0.0001726,2]
[334013306,1722679849035,-500.0,0.0001726,2]
[334013307,1722679849047,-1041.82,0.0001726,2]
[334013308,1722679849057,-500.0,0.0001726,2]
[334013309,1722679849066,-587.18,0.0001726,2]
[334013310,1722679849075,-505.01,0.0001726,2]
[334013311,1722679849085,-548.04,0.0001726,2]
[334013312,1722679849094,-538.24,0.0001726,2]
[334013313,1722679849104,-2230.61,0.0001726,2]
[334013314,1722679849113,-500.0,0.0001726,2]
[334013315,1722679849123,-500.0,0.0001726,2]
[334013316,1722679849132,-500.0,0.0001726,2]
[334013317,1722679849141,-965.02,0.0001726,2]
[334013318,1722679849151,-500.0,0.0001726,2]
[334013319,1722679849160,-1406.26,0.0001726,2]
[334013320,1722679849170,-500.0,0.0001726,2]
[334013321,1722679849180,-932.3,0.0001726,2]
[334013322,1722679849189,-500.0,0.0001726,2]
[334013323,1722679849198,-500.0,0.0001726,2]
[334013324,1722679849207,-996.2,0.0001726,2]
[334013325,1722679849217,-1149.12,0.0001726,2]
[334013326,1722679849226,-500.0,0.0001726,2]
[334013327,1722679849235,-556.75,0.0001726,2]
[334013328,1722679849244,-500.0,0.0001726,2]
[334013329,1722679849254,-500.0,0.0001726,2]
[334013330,1722679849263,-500.0,0.0001726,2]
[334013331,1722679849273,-500.0,0.0001726,2]
[334013332,1722679849285,-682.35,0.0001726,2]
[334013333,1722679849294,-1039.26,0.0001726,2]
[334013334,1722679849304,-500.0,0.0001726,2]
[334013335,1722679849313,-500.0,0.0001726,2]
[334013336,1722679849323,-670.1,0.0001726,2]
[334013337,1722679849332,-1099.2,0.0001726,2]
[334013338,1722679849342,-500.0,0.0001726,2]
[334013339,1722679849351,-500.0,0.0001726,2]
[334013340,1722679849361,-1762.59,0.0001726,2]
[334013341,1722679849370,-500.0,0.0001726,2]
[334013342,1722679849379,-1538.41,0.0001726,2]
[334013343,1722679849388,-508.97,0.0001726,2]
[334013344,1722679849397,-500.0,0.0001726,2]
[334013345,1722679849407,-524.29,0.0001726,2]
[334013346,1722679849417,-509.71,0.0001726,2]
[334013347,1722679849426,-500.0,0.0001726,2]
[334013348,1722679849436,-2869.52,0.0001726,2]
[334013349,1722679849446,-500.0,0.0001726,2]
[334013350,1722679849457,-962.43,0.0001726,2]
[334013351,1722679849467,-500.0,0.0001726,2]
[334013352,1722679849477,-845.82,0.0001726,2]
[334013353,1722679849486,-799.98,0.0001726,2]
[334013354,1722679849496,-500.0,0.0001726,2]
[334013355,1722679849506,-990.59,0.0001726,2]
[334013356,1722679849516,-500.0,0.0001726,2]
[334013357,1722679849528,-500.0,0.0001726,2]
[334013358,1722679849538,-722.18,0.0001726,2]
[334013359,1722679849548,-946.75,0.0001726,2]
[334013360,1722679849558,-3094.92,0.0001726,2]
[334013361,1722679849568,-1648.87,0.0001726,2]
[334013362,1722679849578,-500.0,0.0001726,2]
[334013363,1722679849589,-500.0,0.0001726,2]
[334013364,1722679849599,-546.6,0.0001726,2]
[334013365,1722679849609,-649.4,0.0001726,2]
[334013366,1722679849619,-756.12,0.0001726,2]
[334013367,1722679849629,-549.28,0.0001726,2]
[334013368,1722679849639,-4776.75,0.0001726,2]
[334013369,1722679849648,-500.0,0.0001726,2]
[334013370,1722679849658,-1739.26,0.0001726,2]
[334013371,1722679849667,-633.04,0.0001726,2]
[334013372,1722679849677,-500.0,0.0001726,2]
[334013373,1722679849687,-894.83,0.0001726,2]
[334013374,1722679849696,-500.0,0.0001726,2]
[334013375,1722679849706,-679.21,0.0001726,2]
[334013376,1722679849715,-500.0,0.0001726,2]
[334013377,1722679849725,-1863.79,0.0001726,2]
[334013378,1722679849735,-5258.6,0.0001726,2]
[334013379,1722679849745,-1520.3,0.0001726,2]
[334013380,1722679849754,-2610.29,0.0001726,2]
[334013381,1722679849764,-794.69,0.0001726,2]
[334013382,1722679849773,-608.3,0.0001726,2]
[334013383,1722679849784,-500.0,0.0001726,2]
[334013384,1722679849793,-278.95564096,0.00017289,2]
[334013385,1722679849803,-5587.69696956,0.00017289,2]
[334013386,1722679849812,-155.0,0.0001738,2]
[334013387,1722679849824,-451.86967886,0.0001743,2]
[334013388,1722679849834,-151.0,0.00017533,2]
[334013389,1722679849843,-1228.92,0.00017533,2]
[334013390,1722679849852,-500.0,0.00017533,2]
[334013391,1722679849863,-500.0,0.00017533,2]
[334013392,1722679849872,-1487.36,0.00017533,2]
[334013393,1722679849881,-586.29,0.00017533,2]
[334013394,1722679849890,-509.23,0.00017533,2]
[334013395,1722679849899,-1514.24,0.00017533,2]
[334013396,1722679849910,-547.25,0.00017533,2]
[334013397,1722679849919,-500.0,0.00017533,2]
[334013398,1722679849928,-632.81,0.00017533,2]
[334013399,1722679849938,-1002.48,0.00017533,2]
[334013400,1722679849947,-500.0,0.00017533,2]
[334013401,1722679849956,-500.0,0.00017533,2]
[334013402,1722679849965,-690.99,0.00017533,2]
[334013403,1722679849974,-1486.0,0.00017533,2]
[334013404,1722679849983,-757.77,0.00017533,2]
[334013405,1722679849992,-1053.29,0.00017533,2]
[334013406,1722679850001,-500.0,0.00017533,2]
[334013407,1722679850011,-500.0,0.00017533,2]
[334013408,1722679850020,-2310.93,0.00017533,2]
[334013409,1722679850032,-500.0,0.00017533,2]
[334013410,1722679850042,-622.99101537,0.00017533,2]
[334013411,1722679850051,-500.0,0.00017534,2]
[334013412,1722679850061,-500.0,0.00017534,2]
[334013413,1722679850071,-500.0,0.00017534,2]
[334013414,1722679850081,-570.74009268,0.00017534,2]
[334013415,1722679850092,-500.0,0.00017534,2]
[334013416,1722679850101,-500.0,0.00017534,2]
[334013417,1722679850111,-259.04795656,0.00017534,2]
[334013418,1722679850121,-500.0,0.00017534,2]
[334013419,1722679850131,-500.0,0.00017534,2]
[334013420,1722679850142,-500.0,0.00017534,2]
[334013421,1722679850151,-500.0,0.00017534,2]
[334013422,1722679850162,-500.0,0.00017534,2]
[334013423,1722679850173,-500.0,0.00017534,2]
[334013424,1722679850183,-500.0,0.00017534,2]
[334013425,1722679850194,-500.0,0.00017534,2]
[334013426,1722679850204,-500.0,0.00017534,2]
[334013427,1722679850215,-500.0,0.00017534,2]
[334013428,1722679850225,-500.0,0.00017534,2]
[334013429,1722679850235,-500.0,0.00017534,2]
[334013430,1722679850246,-500.0,0.00017534,2]
[334013431,1722679850257,-500.0,0.00017534,2]
[334013432,1722679850267,-500.0,0.00017534,2]
[334013433,1722679850277,-1038.92,0.00017534,2]
[334013434,1722679850293,-500.0,0.00017534,2]
[334013435,1722679850303,-500.0,0.00017534,2]
[334013436,1722679850314,-500.0,0.00017534,2]
[334013437,1722679850325,-500.0,0.00017534,2]
[334013438,1722679850335,-500.0,0.00017534,2]
[334013439,1722679850346,-500.0,0.00017534,2]
[334013440,1722679850356,-500.0,0.00017534,2]
[334013441,1722679850366,-500.0,0.00017534,2]
[334013442,1722679850377,-551.64,0.00017534,2]
[334013443,1722679850387,-500.0,0.00017534,2]
[334013444,1722679850397,-500.0,0.00017534,2]
[334013445,1722679850407,-500.0,0.00017534,2]
[334013446,1722679850418,-500.0,0.00017534,2]
[334013447,1722679850428,-500.0,0.00017534,2]
[334013448,1722679850438,-1131.87,0.00017534,2]
[334013449,1722679850448,-500.0,0.00017534,2]
[334013450,1722679850458,-500.0,0.00017534,2]
[334013451,1722679850467,-500.0,0.00017534,2]
[334013452,1722679850477,-500.0,0.00017534,2]
[334013453,1722679850486,-500.0,0.00017534,2]
[334013454,1722679850495,-500.0,0.00017534,2]
[334013455,1722679850505,-780.23,0.00017534,2]
[334013456,1722679850514,-500.0,0.00017534,2]
[334013457,1722679850523,-580.49,0.00017534,2]
[334013458,1722679850535,-500.0,0.00017534,2]
[334013459,1722679850546,-500.0,0.00017534,2]
[334013460,1722679850556,-500.0,0.00017534,2]
[334013461,1722679850565,-500.0,0.00017534,2]
[334013462,1722679850577,-500.0,0.00017534,2]
[334013463,1722679850586,-500.0,0.00017534,2]
[334013464,1722679850596,-500.0,0.00017534,2]
[334013465,1722679850606,-500.0,0.00017534,2]
[334013466,1722679850615,-500.0,0.00017534,2]
[334013467,1722679850625,-500.0,0.00017534,2]
[334013468,1722679850635,-500.0,0.00017534,2]
[334013469,1722679850644,-500.0,0.00017534,2]
[334013470,1722679850654,-500.0,0.00017534,2]
[334013471,1722679850664,-500.0,0.00017534,2]
[334013472,1722679850674,-500.0,0.00017534,2]
[334013473,1722679850683,-500.0,0.00017534,2]
[334013474,1722679850693,-500.0,0.00017534,2]
[334013475,1722679850703,-500.0,0.00017534,2]
[334013476,1722679850712,-500.0,0.00017534,2]
[334013477,1722679850722,-724.65,0.00017534,2]
[334013478,1722679850732,-500.0,0.00017534,2]
[334013479,1722679850741,-500.0,0.00017534,2]
[334013480,1722679850750,-500.0,0.00017534,2]
[334013481,1722679850760,-500.0,0.00017534,2]
[334013482,1722679850770,-500.0,0.00017534,2]
[334013483,1722679850782,-500.0,0.00017534,2]
[334013484,1722679850792,-500.0,0.00017534,2]
[334013485,1722679850801,-500.0,0.00017534,2]
[334013486,1722679850810,-500.0,0.00017534,2]
[334013487,1722679850821,-500.0,0.00017534,2]
[334013488,1722679850834,-500.0,0.00017534,2]
[334013489,1722679850843,-500.0,0.00017534,2]
[334013490,1722679850853,-500.0,0.00017534,2]
[334013491,1722679850863,-500.0,0.00017534,2]
[334013492,1722679850872,-500.0,0.00017534,2]
[334013493,1722679850881,-500.0,0.00017534,2]
[334013494,1722679850891,-500.0,0.00017534,2]
[334013495,1722679850901,-500.0,0.00017534,2]
[334013496,1722679850911,-500.0,0.00017534,2]
[334013497,1722679850921,-169.62,0.00017534,2]
[334013498,1722679850931,-500.0,0.00017534,2]
[334013499,1722679850940,-500.0,0.00017534,2]
[334013500,1722679850949,-500.0,0.00017534,2]
[334013501,1722679850959,-500.0,0.00017534,2]
[334013502,1722679850968,-294.74064177,0.00017534,2]
[334013503,1722679850978,-172.29437392,0.00017534,2]
[334013504,1722679850987,-500.0,0.00017534,2]
[334013505,1722679850998,-645.63790606,0.00017534,2]
[334013506,1722679851007,-500.0,0.00017534,2]
[334013507,1722679851017,-500.0,0.00017534,2]
[334013508,1722679851027,-500.0,0.00017534,2]
[334013509,1722679851038,-218.21496486,0.00017534,2]
[334013510,1722679851050,-500.0,0.00017534,2]
[334013511,1722679851060,-1050.57,0.00017534,2]
[334013512,1722679851070,-500.0,0.00017534,2]
[334013513,1722679851079,-863.18,0.00017534,2]
[334013514,1722679851088,-500.0,0.00017534,2]
[334013515,1722679851098,-500.0,0.00017534,2]
[334013516,1722679851107,-500.0,0.00017534,2]
[334013517,1722679851117,-500.0,0.00017534,2]
[334013518,1722679851127,-500.0,0.00017534,2]
[334013519,1722679851137,-500.0,0.00017534,2]
[334013520,1722679851147,-479.61566798,0.00017534,2]
[334013521,1722679851156,-500.0,0.00017534,2]
[334013522,1722679851167,-500.0,0.00017534,2]
[334013523,1722679851176,-500.0,0.00017534,2]
[334013524,1722679851185,-500.0,0.00017534,2]
[334013525,1722679851195,-539.35,0.00017534,2]
[334013526,1722679851204,-500.0,0.00017534,2]
[334013527,1722679851213,-500.0,0.00017534,2]
[334013528,1722679851223,-500.0,0.00017534,2]
[334013529,1722679851234,-500.0,0.00017534,2]
[334013530,1722679851243,-500.0,0.00017534,2]
[334013531,1722679851253,-500.0,0.00017534,2]
[334013532,1722679851262,-500.0,0.00017534,2]
[334013533,1722679851272,-500.0,0.00017534,2]
[334013534,1722679851284,-500.0,0.00017534,2]
[334013535,1722679851293,-500.0,0.00017534,2]
[334013536,1722679851305,-204.5260417,0.00017534,2]
[334013537,1722679851315,-500.0,0.00017534,2]
[334013538,1722679851324,-700.34,0.00017534,2]
[334013539,1722679851334,-500.0,0.00017534,2]
[334013540,1722679851344,-500.0,0.00017534,2]
[334013541,1722679851354,-500.0,0.00017534,2]
[334013542,1722679851363,-500.0,0.00017534,2]
[334013543,1722679851373,-592.7,0.00017534,2]
[334013544,1722679851382,-500.0,0.00017534,2]
[334013545,1722679851392,-500.0,0.00017534,2]
[334013546,1722679851402,-500.0,0.00017534,2]
[334013547,1722679851416,-500.0,0.00017534,2]
[334013548,1722679851426,-542.41,0.00017534,2]
[334013549,1722679851436,-500.0,0.00017534,2]
[334013550,1722679851445,-551.5,0.00017534,2]
[334013551,1722679851455,-500.0,0.00017534,2]
[334013552,1722679851464,-500.0,0.00017534,2]
[334013553,1722679851474,-500.0,0.00017534,2]
[334013554,1722679851483,-2156.49,0.00017534,2]
[334013555,1722679851492,-763.4,0.00017534,2]
[334013556,1722679851502,-500.0,0.00017534,2]
[334013557,1722679851511,-605.34,0.00017534,2]
[334013558,1722679851520,-500.0,0.00017534,2]
[334013559,1722679851531,-2025.66,0.00017534,2]
[334013560,1722679851540,-533.71,0.00017534,2]
[334013561,1722679851551,-500.0,0.00017534,2]
[334013562,1722679851560,-151.0,0.00017534,2]
[334013563,1722679851570,-500.0,0.00017534,2]
[334013564,1722679851580,-500.0,0.00017534,2]
[334013565,1722679851589,-985.87,0.00017534,2]
[334013566,1722679851599,-1174.52,0.00017534,2]
[334013567,1722679851608,-500.0,0.00017534,2]
[334013568,1722679851618,-500.0,0.00017534,2]
[334013569,1722679851627,-500.0,0.00017534,2]
[334013570,1722679851637,-1586.69,0.00017534,2]
[334013571,1722679851646,-830.37,0.00017534,2]
[334013572,1722679851656,-345.75637599,0.00017534,2]
[334013573,1722679851666,-500.0,0.00017534,2]
[334013574,1722679851676,-296.13706143,0.00017534,2]
[334013575,1722679851685,-500.0,0.00017534,2]
[334013576,1722679851695,-500.0,0.00017534,2]
[334013577,1722679851704,-500.0,0.00017534,2]
[334013578,1722679851713,-6184.42,0.00017534,2]
[334013579,1722679851722,-715.08,0.00017534,2]
[334013580,1722679851732,-2939.45,0.00017534,2]
[334013581,1722679851741,-500.0,0.00017534,2]
[334013582,1722679851751,-2824.94,0.00017534,2]
[334013583,1722679851760,-728.72,0.00017534,2]
[334013584,1722679851769,-500.0,0.00017534,2]
[334013585,1722679851778,-1733.44,0.00017534,2]
[334013586,1722679851787,-500.0,0.00017534,2]
[334013587,1722679851796,-612.74,0.00017534,2]
[334013588,1722679851805,-500.0,0.00017534,2]
[334013589,1722679851815,-1033.05,0.00017534,2]
[334013590,1722679851824,-2726.97,0.00017534,2]
[334013591,1722679851836,-390.79135884,0.00017534,2]
[334013592,1722679851845,-500.0,0.00017534,2]
[334013593,1722679851855,-674.25,0.00017534,2]
[334013594,1722679851865,-500.0,0.00017534,2]
[334013595,1722679851874,-591.7,0.00017534,2]
[334013596,1722679851883,-500.0,0.00017534,2]
[334013597,1722679851892,-500.0,0.00017534,2]
[334013598,1722679851903,-797.47,0.00017534,2]
[334013599,1722679851912,-2712.22,0.00017534,2]
[334013600,1722679851921,-771.83,0.00017534,2]
[334013601,1722679851930,-89.96493504,0.00017534,2]
[334013602,1722679852199,-410.03506496,0.00017534,2]
[334013603,1722679852209,-779.95,0.00017534,2]
[334013604,1722679852219,-1649.43,0.00017534,2]
[334013605,1722679852228,-500.0,0.00017534,2]
[334013606,1722679852237,-40.72004389,0.00017534,2]
[334013607,1722679852248,-342.108,0.00017534,2]
[334013608,1722679852260,-445.04195611,0.00017534,2]
[334013609,1722679852270,-500.0,0.00017534,2]
[334013610,1722679852281,-500.0,0.00017534,2]
[334013611,1722679852293,-694.73,0.00017534,2]
[334013612,1722679852303,-500.0,0.00017534,2]
[334013613,1722679852312,-1327.35,0.00017534,2]
[334013614,1722679852321,-1575.91,0.00017534,2]
[334013615,1722679852330,-500.0,0.00017534,2]
[334013616,1722679852340,-550.59,0.00017534,2]
[334013617,1722679852349,-1401.71,0.00017534,2]
[334013618,1722679852358,-500.0,0.00017534,2]
[334013619,1722679852367,-500.0,0.00017534,2]
[334013620,1722679852376,-813.6,0.00017534,2]
[334013621,1722679852385,-695.59,0.00017534,2]
[334013622,1722679852395,-500.0,0.00017534,2]